bitfinex/quotes_SOLUSD_20240908
["timestamp","ask_amount","ask_price","bid_price","bid_amount"]
[1725758417800,45.0,128.38,128.33,20.0]
[1725758419103,52.7893,128.38,128.33,20.0]
[1725758431225,7.7893,128.38,128.33,20.0]
[1725758431401,7.7893,128.38,128.33,26.3556]
[1725758431596,7.7889,128.39,128.33,26.3556]
[1725758443933,7.7906,128.36,128.33,20.0]
[1725758444235,19.4707,128.4,128.33,20.0]
[1725758444432,45.0,128.39,128.33,20.0]
[1725758444630,7.7901,128.37,128.33,20.0]
[1725758446739,45.0,128.39,128.33,20.0]
[1725758446740,7.7895,128.38,128.33,20.0]
[1725758448837,7.79,128.37,128.33,20.0]
[1725758453447,54.73916594,128.36,128.33,20.0]
[1725758453648,52.7911,128.36,128.33,20.0]
[1725758454457,7.7911,128.36,128.33,20.0]
[1725758454751,7.7901,128.37,128.33,20.0]
[1725758457751,1.94786552,128.36,128.33,20.0]
[1725758458048,7.7901,128.37,128.33,20.0]
[1725758460033,38.40008219,128.41,128.33,20.0]
[1725758460034,7.7895,128.38,128.33,20.0]
[1725758461245,7.7889,128.39,128.33,20.0]
[1725758461451,43.72517048,128.44,128.34,16.73835648]
[1725758461651,7.7879,128.41,128.34,16.73835648]
[1725758461837,7.7881,128.4,128.35,20.0]
[1725758462042,7.7887,128.39,128.35,20.0]
[1725758464136,19.23134823,128.44,128.36,15.2766]
[1725758464355,7.7864,128.43,128.37,20.0]
[1725758464565,7.7858,128.44,128.37,20.0]
[1725758466073,1.9467283,128.44,128.37,20.0]
[1725758466860,4.62199421,128.45,128.37,20.0]
[1725758467071,45.0,128.44,128.37,20.0]
[1725758467274,7.787,128.42,128.37,20.0]
[1725758467572,7.7864,128.43,128.37,20.0]
[1725758469071,36.7114971,128.47,128.37,20.0]
[1725758469268,36.7114971,128.47,128.38,16.73835648]
[1725758469585,23.15539066,128.47,128.39,20.0]
[1725758470184,20.3257971,128.47,128.39,20.0]
[1725758470383,7.7851,128.45,128.39,20.0]
[1725758470585,7.7858,128.44,128.39,20.0]
[1725758472494,45.0,128.46,128.39,20.0]
[1725758472789,7.7869,128.42,128.38,6.2755]
[1725758472976,7.7869,128.42,128.36,15.2766]
[1725758473564,7.7865,128.43,128.36,15.2766]
[1725758473785,7.7865,128.43,128.36,25.73945648]
[1725758474165,7.7865,128.43,128.37,20.0]
[1725758475767,7.7871,128.42,128.37,20.0]
[1725758475994,60.4218,128.46,128.37,20.0]
[1725758476289,7.7864,128.43,128.37,20.0]
[1725758477681,60.4218,128.46,128.37,20.0]
[1725758477682,7.7847,128.46,128.38,10.46285648]
[1725758477891,7.7847,128.46,128.39,42.2143]
[1725758478093,8.6488971,128.47,128.4,10.46285648]
[1725758478467,8.6488971,128.47,128.41,20.0]
[1725758480596,8.1488971,128.47,128.41,20.0]
[1725758482986,9.73082533,128.46,128.41,20.0]
[1725758483178,7.7846,128.46,128.41,20.0]
[1725758483983,7.2846,128.46,128.41,20.0]
[1725758487095,0.3649971,128.47,128.44,10.46285648]
[1725758487277,0.3649971,128.47,128.44,6.3975]
[1725758487478,0.3649971,128.47,128.45,20.0]
[1725758488183,0.3649971,128.47,128.46,16.3778]
[1725758488381,0.3649971,128.47,128.46,26.84065648]
[1725758488597,0.3649971,128.47,128.46,46.84065648]
[1725758488897,0.3649971,128.47,128.46,36.3778]
[1725758489503,0.3649971,128.47,128.46,20.0]
[1725758489982,0.3649971,128.47,128.45,20.0]
[1725758490176,0.3649971,128.47,128.43,20.0]
[1725758490382,0.3649971,128.47,128.42,16.3778]
[1725758492480,0.3649971,128.47,128.43,20.0]
[1725758500407,8.1488971,128.47,128.43,20.0]
[1725758500713,2.31119358,128.47,128.42,20.0]
[1725758500922,2.31119358,128.47,128.38,46.84065648]
[1725758501415,7.7846,128.46,128.38,46.84065648]
[1725758501791,0.3649971,128.47,128.4,10.46285648]
[1725758501989,8.1489971,128.47,128.41,20.0]
[1725758506518,0.3649971,128.47,128.41,20.0]
[1725758511910,0.3649971,128.47,128.42,10.46285648]
[1725758512111,0.3649971,128.47,128.44,10.46285648]
[1725758512312,0.3649971,128.47,128.45,20.0]
[1725758514601,0.3649971,128.47,128.44,20.0]
[1725758515812,0.3649971,128.47,128.41,1.56046948]
[1725758516012,0.3649971,128.47,128.4,10.46285648]
[1725758516424,0.3649971,128.47,128.42,10.46285648]
[1725758517129,0.3649971,128.47,128.43,20.0]
[1725758520306,8.1489971,128.47,128.43,20.0]
[1725758520510,8.1489971,128.47,128.41,20.0]
[1725758521025,0.3649971,128.47,128.41,20.0]
[1725758521211,0.3649971,128.47,128.42,10.46285648]
[1725758521411,0.3649971,128.47,128.43,20.0]
[1725758524329,0.3649971,128.47,128.4,12.02350689]
[1725758524330,0.3649971,128.47,128.41,20.0]
[1725758524914,0.3649971,128.47,128.42,10.46285648]
[1725758525113,0.3649971,128.47,128.43,20.0]
[1725758529718,0.3649971,128.47,128.46,10.46285648]
[1725758529911,256.7,128.56,128.46,75.46285648]
[1725758529912,261.3647,128.56,128.46,75.46285648]
[1725758530138,16.5204,128.58,128.47,41.361]
[1725758530434,16.5204,128.58,128.53,10.46285648]
[1725758530645,16.5204,128.58,128.54,20.0]
[1725758531214,23.8500971,128.6,128.55,10.46285648]
[1725758531439,23.8500971,128.6,128.56,20.0]
[1725758531817,1.55495396,128.59,128.56,20.0]
[1725758532024,23.8500971,128.6,128.49,21.55973655]
[1725758532025,32.81925326,128.6,128.49,21.55973655]
[1725758532219,7.7772,128.59,128.49,47.50018586]
[1725758532818,7.778,128.57,128.49,21.55973655]
[1725758533143,22.4443,128.55,128.49,20.0]
[1725758533319,22.4443,128.55,128.47,15.1359]
[1725758533320,22.4443,128.55,128.48,20.0]
[1725758533516,24.38946803,128.55,128.48,20.0]
[1725758533835,45.0,128.54,128.46,1.55999714]
[1725758534026,52.7799,128.54,128.46,1.55999714]
[1725758534221,52.7799,128.54,128.44,21.6387]
[1725758534427,52.7799,128.54,128.45,25.94044931]
[1725758535132,22.4443,128.55,128.45,25.94044931]
[1725758535335,22.4443,128.55,128.47,25.94044931]
[1725758535722,22.4443,128.55,128.48,20.0]
[1725758536830,30.2234,128.55,128.48,20.0]
[1725758539322,7.7797,128.54,128.48,20.0]
[1725758539521,7.7809,128.52,128.46,20.0]
[1725758539722,7.7802,128.53,128.44,20.0]
[1725758540816,7.7802,128.53,128.45,45.0]
[1725758541242,7.7802,128.53,128.44,20.0]
[1725758541243,7.7802,128.53,128.46,20.0]
[1725758541445,7.7802,128.53,128.44,20.0]
[1725758542849,7.7826,128.5,128.44,20.0]
[1725758543038,6.1064,128.49,128.42,20.0]
[1725758545430,13.8892,128.49,128.42,20.0]
[1725758546851,22.2751,128.56,128.45,25.94044931]
[1725758547058,7.7803,128.53,128.45,25.94044931]
[1725758547256,7.7803,128.53,128.46,20.0]
[1725758548350,22.2751,128.51,128.41,25.94044931]
[1725758548555,7.7822,128.5,128.41,25.94044931]
[1725758549439,22.2751,128.51,128.43,25.94044931]
[1725758549638,22.2751,128.51,128.44,65.0]
[1725758561871,15.7659,128.48,128.4,8.93055763]
[1725758562070,15.7659,128.48,128.39,25.94044931]
[1725758563069,15.7659,128.48,128.4,20.0]
[1725758563870,15.7659,128.48,128.41,45.0]
[1725758564168,6.3722,128.47,128.39,25.94044931]
[1725758565458,6.3722,128.47,128.4,20.0]
[1725758570269,6.3722,128.47,128.41,70.94044931]
[1725758570683,6.3722,128.47,128.42,20.0]
[1725758577985,6.3722,128.47,128.42,30.38931831]
[1725758581167,15.7659,128.46,128.42,20.0]
[1725758581477,15.7659,128.46,128.36,10.38931831]
[1725758581478,13.9644,128.44,128.36,10.38931831]
[1725758581694,23.9651,128.43,128.36,10.38931831]
[1725758581977,23.9651,128.43,128.34,10.38931831]
[1725758582981,16.1788,128.43,128.34,10.38931831]
[1725758584082,16.1788,128.43,128.35,20.0]
[1725758584383,16.1788,128.43,128.36,45.0]
[1725758584588,16.1788,128.43,128.37,20.0]
[1725758594294,16.1788,128.43,128.38,45.0]
[1725758594474,16.1788,128.43,128.39,20.0]
[1725758597371,16.1788,128.43,128.32,64.68050208]
[1725758597372,16.1788,128.43,128.37,20.0]
[1725758597602,16.1788,128.43,128.34,46.00067495]
[1725758598702,16.1788,128.43,128.35,45.0]
[1725758598903,16.1788,128.43,128.36,46.00067495]
[1725758599213,16.1788,128.43,128.37,45.0]
[1725758599377,16.1788,128.43,128.38,20.0]
[1725758599998,16.1788,128.43,128.37,20.0]
[1725758600383,6.1786,128.42,128.35,20.0]
[1725758600575,16.1788,128.41,128.35,20.0]
[1725758600887,16.1788,128.41,128.36,26.00067495]
[1725758601091,16.1788,128.41,128.37,20.0]
[1725758606110,16.1788,128.41,128.38,10.39634013]
[1725758606315,16.1788,128.41,128.39,20.0]
[1725758610396,16.1788,128.41,128.34,10.39634013]
[1725758610617,16.1788,128.41,128.34,11.95742914]
[1725758610793,16.1788,128.41,128.34,10.39634013]
[1725758611194,16.1788,128.41,128.36,10.39634013]
[1725758612224,16.1788,128.41,128.37,20.0]
[1725758612515,16.1788,128.41,128.35,10.39634013]
[1725758612710,16.1788,128.41,128.36,20.0]
[1725758622306,23.9665,128.41,128.34,20.0]
[1725758623114,7.7883,128.4,128.34,20.0]
[1725758623797,7.7883,128.4,128.32,8.0721062]
[1725758623798,15.4329,128.37,128.32,8.0721062]
[1725758624003,14.4392,128.36,128.27,10.39634013]
[1725758624204,14.4392,128.36,128.27,11.95769158]
[1725758624406,14.4392,128.36,128.27,10.39634013]
[1725758624603,14.4392,128.36,128.27,11.95769158]
[1725758625019,14.4392,128.36,128.27,10.39634013]
[1725758625201,14.4392,128.36,128.27,11.95769158]
[1725758625401,14.4392,128.36,128.27,10.39634013]
[1725758625601,14.4392,128.36,128.28,45.0]
[1725758626003,14.4392,128.36,128.28,46.56135145]
[1725758626321,14.4392,128.36,128.28,45.0]
[1725758626826,14.4392,128.36,128.29,20.0]
[1725758627517,23.2241,128.35,128.29,20.0]
[1725758627736,23.2241,128.35,128.28,20.0]
[1725758627936,15.4329,128.35,128.28,20.0]
[1725758628224,23.2243,128.35,128.28,20.0]
[1725758628606,14.4402,128.34,128.23,8.07927307]
[1725758628921,14.4402,128.34,128.26,10.39634013]
[1725758629725,15.4329,128.33,128.26,10.39634013]
[1725758629910,15.4329,128.33,128.27,20.0]
[1725758630113,23.2259,128.33,128.27,20.0]
[1725758630313,15.4329,128.31,128.24,20.0]
[1725758630525,23.2266,128.31,128.23,10.39634013]
[1725758632011,23.2266,128.31,128.24,20.0]
[1725758633121,15.4329,128.31,128.24,20.0]
[1725758633322,17.38160496,128.31,128.24,20.0]
[1725758634205,15.4329,128.31,128.24,20.0]
[1725758641344,15.4329,128.31,128.27,10.39634013]
[1725758641512,15.4329,128.31,128.28,20.0]
[1725758643028,15.4329,128.31,128.26,20.0]
[1725758643730,23.2265,128.31,128.26,20.0]
[1725758644038,25.17536266,128.31,128.23,10.39634013]
[1725758644234,23.2265,128.31,128.24,20.0]
[1725758646149,15.4329,128.31,128.25,10.39634013]
[1725758646316,15.4329,128.31,128.27,10.39634013]
[1725758646644,15.4329,128.31,128.28,20.0]
[1725758648345,15.4329,128.31,128.26,20.0]
[1725758653639,15.4329,128.31,128.24,20.0]
[1725758656941,23.2265,128.31,128.24,20.0]
[1725758658745,15.4329,128.31,128.25,10.39634013]
[1725758659053,15.4329,128.31,128.26,20.0]
[1725758659633,6.6574,128.3,128.26,20.0]
[1725758659952,6.6574,128.3,128.21,30.39634013]
[1725758659953,17.32716856,128.29,128.21,30.39634013]
[1725758661234,23.1729,128.29,128.21,30.39634013]
[1725758664464,25.12203298,128.29,128.21,30.39634013]
[1725758664767,23.1729,128.29,128.21,30.39634013]
[1725758665149,15.3781,128.29,128.21,30.39634013]
[1725758665353,15.3781,128.29,128.22,45.0]
[1725758665665,15.3781,128.29,128.23,20.0]
[1725758667236,15.3781,128.29,128.22,20.0]
[1725758667764,6.3284,128.28,128.22,20.0]
[1725758668667,6.3284,128.28,128.22,21.56282273]
[1725758669360,6.3284,128.28,128.23,1.56282273]
[1725758670068,15.8419,128.27,128.23,1.56282273]
[1725758670253,17.7911495,128.27,128.23,1.56282273]
[1725758670450,17.7911495,128.27,128.19,10.39634013]
[1725758670656,17.7911495,128.27,128.2,1.56282273]
[1725758670853,1.94933879,128.26,128.21,1.56282273]
[1725758671042,15.8419,128.27,128.22,1.56282273]
[1725758671245,23.638,128.27,128.2,1.56282273]
[1725758671646,23.638,128.27,128.21,1.56300841]
[1725758672171,23.638,128.27,128.2,20.0]
[1725758672172,23.638,128.27,128.22,1.56300841]
[1725758672349,23.638,128.27,128.21,1.56300841]
[1725758672675,23.638,128.27,128.22,1.56300841]
[1725758672969,23.638,128.27,128.21,1.56300841]
[1725758673172,23.638,128.27,128.22,1.56300841]
[1725758673471,23.638,128.27,128.21,1.56300841]
[1725758673667,23.638,128.27,128.22,1.56300841]
[1725758673859,23.638,128.27,128.21,1.56300841]
[1725758674049,23.638,128.27,128.22,1.56300841]
[1725758674246,15.8419,128.27,128.21,56.95934854]
[1725758674446,15.8419,128.27,128.22,21.56300841]
[1725758674649,15.8419,128.27,128.23,1.56300841]
[1725758674844,15.8419,128.27,128.22,20.0]
[1725758675067,15.8419,128.27,128.23,1.56287048]
[1725758677542,15.8419,128.27,128.22,21.56287048]
[1725758684073,15.8419,128.27,128.22,20.0]
[1725758687563,15.8419,128.27,128.22,21.56287048]
[1725758688276,15.8419,128.27,128.22,20.0]
[1725758688580,15.8419,128.27,128.22,21.56295564]
[1725758690351,15.8419,128.27,128.23,10.39634013]
[1725758690555,15.8419,128.27,128.24,20.0]
[1725758691456,15.8419,128.27,128.22,20.0]
[1725758691663,15.8419,128.27,128.19,20.0]
[1725758691957,15.8419,128.27,128.22,1.5628626]
[1725758692158,15.8419,128.27,128.21,21.5628626]
[1725758692360,15.8419,128.27,128.22,1.5628626]
[1725758693379,8.05051398,128.26,128.22,1.5628626]
[1725758693587,15.84721398,128.26,128.19,1.5628626]
[1725758693881,15.84721398,128.26,128.2,1.5628626]
[1725758694069,15.84721398,128.26,128.21,1.5628626]
[1725758694374,15.84721398,128.26,128.22,1.5628626]
[1725758694578,15.84721398,128.26,128.19,1.5628626]
[1725758694769,15.84721398,128.26,128.19,46.5628626]
[1725758694961,15.84721398,128.26,128.2,21.5628626]
[1725758695282,15.84721398,128.26,128.21,1.5628626]
[1725758695575,6.1012,128.26,128.22,1.5628626]
[1725758695771,6.1012,128.26,128.21,1.5628626]
[1725758696080,6.1012,128.26,128.22,1.5628626]
[1725758696280,6.1012,128.26,128.21,1.5628626]
[1725758696468,6.1012,128.26,128.2,20.0]
[1725758696859,6.1012,128.26,128.22,1.56314423]
[1725758697075,6.1012,128.26,128.21,1.56314423]
[1725758697282,6.1012,128.26,128.22,1.56314423]
[1725758697573,6.1012,128.26,128.21,1.56314423]
[1725758698461,6.1012,128.26,128.2,20.0]
[1725758698871,6.1012,128.26,128.21,1.56326314]
[1725758700887,6.1012,128.26,128.2,30.39634013]
[1725758701584,6.1012,128.26,128.21,1.56331279]
[1725758707173,6.1012,128.26,128.2,30.39634013]
[1725758707365,6.1012,128.26,128.21,1.56327764]
[1725758709462,13.898,128.26,128.21,1.56327764]
[1725758709778,15.2364,128.25,128.2,21.56327764]
[1725758710978,15.2364,128.25,128.19,21.56327764]
[1725758713367,15.2364,128.25,128.19,20.0]
[1725758714377,15.2364,128.25,128.19,21.56327764]
[1725758715190,15.2364,128.25,128.19,20.0]
[1725758715396,15.2364,128.25,128.18,1.56327764]
[1725758715397,6.067,128.24,128.18,1.56327764]
[1725758715689,6.067,128.24,128.18,21.56327764]
[1725758716375,13.8648,128.24,128.18,21.56327764]
[1725758716684,13.8648,128.24,128.18,20.0]
[1725758717069,13.8648,128.24,128.18,21.56359827]
[1725758717378,15.81471219,128.24,128.18,20.0]
[1725758717694,13.8648,128.24,128.18,20.0]
[1725758719577,15.2364,128.23,128.18,20.0]
[1725758720900,23.035,128.23,128.18,20.0]
[1725758727196,6.1813,128.21,128.18,20.0]
[1725758727402,17.33927888,128.2,128.16,0.8649971]
[1725758732083,15.389,128.2,128.16,0.8649971]
[1725758735885,17.33949797,128.2,128.16,0.8649971]
[1725758736081,15.389,128.2,128.16,0.8649971]
[1725758739991,15.389,128.2,128.16,20.8649971]
[1725758740584,15.389,128.2,128.17,10.39634013]
[1725758740795,6.1813,128.21,128.18,20.0]
[1725758741095,15.389,128.19,128.16,20.8649971]
[1725758741405,1.95064489,128.18,128.16,20.8649971]
[1725758741603,1.95064489,128.18,128.16,0.8649971]
[1725758742104,17.33965031,128.19,128.16,0.8649971]
[1725758743093,15.389,128.19,128.16,0.8649971]
[1725758743701,15.389,128.19,128.16,11.26133723]
[1725758743915,15.389,128.19,128.17,20.0]
[1725758745809,15.389,128.19,128.16,0.8649971]
[1725758746013,6.2168,128.17,128.16,0.8649971]
[1725758746213,8.16761153,128.17,128.16,0.8649971]
[1725758747087,6.2168,128.17,128.16,0.8649971]
[1725758763803,15.389,128.19,128.16,0.8649971]
[1725758765317,1.95072939,128.18,128.16,0.8649971]
[1725758768016,15.389,128.19,128.16,0.8649971]
[1725758778633,6.0712,128.21,128.18,10.39634013]
[1725758778834,15.6895,128.22,128.2,10.39634013]
[1725758779042,15.6895,128.22,128.16,0.8649971]
[1725758779241,15.6895,128.22,128.18,10.39634013]
[1725758779530,15.6895,128.22,128.19,20.0]
[1725758780336,45.0,128.21,128.19,20.0]
[1725758781026,45.0,128.21,128.16,11.26133723]
[1725758781530,45.0,128.21,128.17,20.0]
[1725758785128,52.8001,128.21,128.16,0.8649971]
[1725758785331,54.75090533,128.21,128.16,20.8649971]
[1725758785739,8.44064287,128.2,128.16,0.8649971]
[1725758785924,45.0,128.19,128.16,0.8649971]
[1725758790542,45.0,128.19,128.16,20.8649971]
[1725758791339,45.0,128.19,128.16,0.8649971]
[1725758793031,1.95085092,128.18,128.16,0.8649971]
[1725758793230,15.456,128.18,128.16,0.8649971]
[1725758794350,45.0,128.17,128.16,0.8649971]
[1725758797632,46.9511392,128.17,128.16,0.8649971]
[1725758797839,54.75342666,128.17,128.16,0.8649971]
[1725758798240,61.24332666,128.17,128.16,0.8649971]
[1725758799333,59.292,128.17,128.16,0.8649971]
[1725758799536,51.4899,128.17,128.16,0.8649971]
[1725758803157,59.292,128.17,128.16,0.8649971]
[1725758809639,61.24331706,128.17,128.16,0.8649971]
[1725758813357,59.292,128.17,128.16,0.8649971]
[1725758813563,71.17171952,128.17,128.16,0.8649971]
[1725758815155,7.8045,128.14,128.07,26.58474013]
[1725758815466,7.8045,128.14,128.05,10.39634013]
[1725758815467,51.0457,128.13,128.05,10.39634013]
[1725758815640,7.8052,128.12,128.04,16.54]
[1725758815835,45.0,128.11,128.04,16.54]
[1725758816047,45.0,128.11,128.05,10.39634013]
[1725758817639,45.0,128.11,128.06,20.0]
[1725758820260,52.8059,128.11,128.06,20.0]
[1725758821236,7.8064,128.1,128.06,20.0]
[1725758821471,33.46,128.15,128.06,20.0]
[1725758821472,254.9,128.23,128.1,15.3046]
[1725758821758,21.5511,128.27,128.2,10.39634013]
[1725758822061,21.5511,128.27,128.21,20.0]
[1725758822564,21.5511,128.27,128.2,10.39634013]
[1725758822737,21.5511,128.27,128.21,20.0]
[1725758823659,21.5511,128.27,128.2,10.39634013]
[1725758823854,1.95019118,128.26,128.21,20.0]
[1725758824064,1.95019118,128.26,128.19,20.0]
[1725758824242,21.5511,128.27,128.19,20.0]
[1725758825758,45.0,128.26,128.19,20.0]
[1725758828370,21.5511,128.27,128.2,10.39634013]
[1725758828668,21.5511,128.27,128.21,20.0]
[1725758829067,1.95005223,128.26,128.21,20.0]
[1725758829250,1.95005223,128.26,128.18,10.39634013]
[1725758829450,1.95005223,128.26,128.19,20.0]
[1725758829858,46.95005223,128.26,128.19,20.0]
[1725758830068,46.95005223,128.26,128.2,10.39634013]
[1725758830366,45.0,128.26,128.21,20.0]
[1725758832452,45.0,128.26,128.22,10.39634013]
[1725758837564,21.5511,128.27,128.24,10.39634013]
[1725758837767,21.5511,128.31,128.23,20.0]
[1725758837960,21.5511,128.31,128.26,10.39634013]
[1725758840186,45.0,128.3,128.26,10.39634013]
[1725758845982,45.0,128.3,128.24,10.39634013]
[1725758846160,45.0,128.3,128.25,20.0]
[1725758856783,23.50047859,128.31,128.26,10.39634013]
[1725758856983,21.5511,128.31,128.27,20.0]
[1725758858088,45.0,128.3,128.27,20.0]
[1725758866509,45.0,128.3,128.25,10.39634013]
[1725758866677,45.0,128.3,128.26,20.0]
[1725758885313,1.94920915,128.29,128.24,20.0]
[1725758887206,15.2391,128.28,128.23,1.56281035]
[1725758887401,46.94981778,128.27,128.23,1.56281035]
[1725758887714,1.94979593,128.26,128.23,1.56281035]
[1725758888911,1.94979593,128.26,128.22,20.0]
[1725758889411,1.94979593,128.26,128.21,10.39634013]
[1725758889604,51.3439,128.27,128.16,22.3837]
[1725758889605,1.54931447,128.25,128.16,22.3837]
[1725758889814,1.54931447,128.25,128.19,10.39634013]
[1725758890906,59.1399,128.27,128.18,10.39634013]
[1725758890907,15.2391,128.23,128.18,10.39634013]
[1725758891099,45.0,128.22,128.18,10.39634013]
[1725758892718,45.0,128.22,128.19,20.0]
[1725758894811,1.95028352,128.21,128.19,20.0]
[1725758895306,45.0,128.22,128.19,20.0]
[1725758901317,45.0,128.22,128.18,10.39634013]
[1725758901627,45.0,128.22,128.19,20.0]
[1725758910810,45.0,128.22,128.17,10.39634013]
[1725758911010,45.0,128.22,128.18,20.0]
[1725758918109,45.0,128.22,128.19,10.39634013]
[1725758918452,45.0,128.22,128.2,20.0]
[1725758926430,45.0,128.22,128.2,20.0]
[1725758927438,7.7965,128.27,128.2,20.0]
[1725758927739,7.7965,128.27,128.21,10.39634013]
[1725758927740,22.7559,128.27,128.21,10.39634013]
[1725758928118,22.7559,128.27,128.22,20.0]
[1725758928939,30.5521,128.27,128.22,20.0]
[1725758929235,30.5521,128.27,128.21,20.0]
[1725758929633,7.7966,128.26,128.21,20.0]
[1725758929820,45.0,128.25,128.21,20.0]
[1725758931027,46.94998901,128.25,128.21,20.0]
[1725758931926,45.0,128.25,128.21,20.0]
[1725758937239,52.7975,128.25,128.21,20.0]
[1725758937424,52.7975,128.25,128.18,30.39634013]
[1725758946554,7.7979,128.24,128.18,30.39634013]
[1725758946729,45.0,128.23,128.18,30.39634013]
[1725758951049,45.0,128.23,128.18,31.96008347]
[1725758951330,45.0,128.23,128.18,30.39634013]
[1725758951832,45.0,128.23,128.18,31.96008347]
[1725758952032,45.0,128.23,128.18,30.39634013]
[1725758952428,45.0,128.23,128.18,31.96008347]
[1725758952636,45.0,128.23,128.18,30.39634013]
[1725758953155,45.0,128.23,128.18,31.96008347]
[1725758953355,45.0,128.23,128.18,30.39634013]
[1725758954158,45.0,128.23,128.18,31.96008347]
[1725758954468,45.0,128.24,128.18,31.96008347]
[1725758954654,45.0,128.24,128.18,30.39634013]
[1725758957363,7.7995,128.22,128.14,10.39634013]
[1725758957658,46.95066083,128.21,128.14,10.39634013]
[1725758957840,1.95066868,128.2,128.16,1.56382834]
[1725758958042,1.95066868,128.2,128.14,10.39634013]
[1725758958250,1.95066868,128.2,128.15,1.56398213]
[1725758958449,1.95066868,128.2,128.16,1.56398213]
[1725758958961,1.95066868,128.2,128.15,20.0]
[1725758959154,1.95066868,128.2,128.15,21.56405022]
[1725758960436,16.4012,128.19,128.15,20.0]
[1725758960764,46.95092572,128.18,128.12,10.39634013]
[1725758960964,1.95102129,128.17,128.13,1.5642427]
[1725758961265,1.95102129,128.17,128.12,10.39634013]
[1725758961435,1.95102129,128.17,128.12,11.96058283]
[1725758961631,1.95102129,128.17,128.12,10.39634013]
[1725758961837,1.95102129,128.17,128.12,11.96058283]
[1725758962037,1.95102129,128.17,128.12,10.39634013]
[1725758962348,1.95102129,128.17,128.13,20.0]
[1725758962851,45.0,128.18,128.13,20.0]
[1725758972169,22.5042,128.19,128.14,10.39634013]
[1725758972355,22.5042,128.19,128.15,20.0]
[1725758973745,45.0,128.18,128.15,20.0]
[1725758979163,45.0,128.18,128.13,20.0]
[1725758980653,52.8016,128.18,128.13,20.0]
[1725758982195,45.0,128.18,128.13,20.0]
[1725758983089,45.0,128.18,128.14,10.39634013]
[1725758983266,45.0,128.18,128.15,20.0]
[1725758985584,22.5042,128.19,128.15,20.0]
[1725758986574,30.3051,128.19,128.15,20.0]
[1725758986898,45.0,128.18,128.13,20.0]
[1725758991009,52.8015,128.18,128.13,20.0]
[1725759000492,7.8022,128.17,128.13,20.0]
[1725759000689,46.95114757,128.16,128.13,20.0]
[1725759000914,54.75394757,128.16,128.11,20.0]
[1725759001804,1.54794533,128.15,128.11,20.0]
[1725759002014,52.8028,128.16,128.11,20.0]
[1725759002190,45.0,128.16,128.14,10.39634013]
[1725759002391,22.5042,128.19,128.14,10.39634013]
[1725759002597,45.0,128.18,128.14,10.39634013]
[1725759003218,45.0,128.18,128.15,20.0]
[1725759007025,22.5042,128.19,128.15,20.0]
[1725759007218,30.3051,128.19,128.15,20.0]
[1725759007519,22.5042,128.19,128.14,10.39634013]
[1725759007702,22.5042,128.19,128.15,20.0]
[1725759009099,16.4012,128.19,128.15,20.0]
[1725759009305,22.4164,128.22,128.18,10.39634013]
[1725759009620,25.5629,128.25,128.2,10.39634013]
[1725759011423,45.0,128.24,128.2,10.39634013]
[1725759015117,52.7979,128.24,128.15,6.4766]
[1725759015321,52.7979,128.24,128.18,10.39634013]
[1725759015623,52.7979,128.24,128.19,20.0]
[1725759019337,6.4509,128.26,128.22,10.39634013]
[1725759019631,23.8395,128.28,128.23,20.0]
[1725759019818,16.0437,128.28,128.23,20.0]
[1725759020130,16.0437,128.28,128.25,10.39634013]
[1725759020503,16.0437,128.28,128.23,30.39634013]
[1725759020922,16.0437,128.28,128.23,20.0]
[1725759021122,16.0437,128.28,128.23,10.39634013]